bitfinex/quotes_SOLUSD_20250822
["timestamp","ask_amount","ask_price","bid_price","bid_amount"]
[1755872559478,40.72,188.44,188.37,27.85613483]
[1755872559677,40.72,188.44,188.28,26.13240879]
[1755872559678,38.22,188.51,188.43,27.85613483]
[1755872559904,0.67,188.5,188.35,0.56]
[1755872560081,0.67,188.5,188.49,27.85613483]
[1755872560409,0.67,188.5,188.26,0.55]
[1755872560714,0.67,188.5,188.49,27.85613483]
[1755872561023,38.22,188.51,188.49,27.85613483]
[1755872561205,38.22,188.51,188.43,0.28432314]
[1755872561412,38.22,188.51,188.29,0.53109565]
[1755872561582,0.67,188.5,188.29,0.6]
[1755872561907,0.67,188.5,188.45,27.85613483]
[1755872562088,38.22,188.51,188.33,0.66]
[1755872562290,38.22,188.51,188.5,27.85613483]
[1755872562613,7.1598054,188.63,188.51,0.28432314]
[1755872562815,7.1598054,188.63,188.51,0.14216157]
[1755872562991,0.67,188.62,188.32,10.28432314]
[1755872563312,0.67,188.62,188.33,0.7545976]
[1755872563313,27.85613483,188.57,188.33,0.7545976]
[1755872563520,0.67,188.56,188.43,0.14216157]
[1755872563978,0.67,188.56,188.55,27.85613483]
[1755872564182,0.67,188.56,188.38,0.66]
[1755872564692,0.67,188.56,188.28,0.66]
[1755872564903,0.14216157,188.53,188.28,0.66]
[1755872565097,0.67,188.56,188.1,27.85613483]
[1755872565098,27.85613483,188.42,188.2,0.46]
[1755872565304,80.99,188.41,188.13,0.66]
[1755872565513,0.67,188.4,188.28,27.85613483]
[1755872565702,0.67,188.4,188.39,27.85613483]
[1755872566016,8.59654196,188.4,188.37,27.85613483]
[1755872566188,0.67,188.39,188.21,0.66]
[1755872566384,7.92654196,188.4,188.38,27.85613483]
[1755872566610,7.92654196,188.4,188.39,27.85613483]
[1755872566812,7.92654196,188.4,188.26,0.66]
[1755872566813,8.59654196,188.4,188.26,0.66]
[1755872567108,7.92654196,188.4,188.26,0.66]
[1755872567303,7.92654196,188.4,188.1,28.38776694]
[1755872567304,7.92654196,188.4,188.19,0.68]
[1755872567305,27.85613483,188.38,188.19,0.68]
[1755872567505,0.7,188.37,188.14,0.71]
[1755872567885,0.7,188.37,188.09,0.71]
[1755872568115,27.85613483,188.3,188.09,0.71]
[1755872568329,0.7,188.29,188.09,0.71]
[1755872568685,0.7,188.29,188.25,27.85613483]
[1755872568892,38.24,188.32,188.28,27.85613483]
[1755872569114,38.24,188.32,188.31,27.85613483]
[1755872569416,38.24,188.32,188.31,28.14045797]
[1755872569597,8.66904722,188.35,188.24,0.71]
[1755872569803,0.7,188.42,188.24,0.71]
[1755872570116,0.7,188.42,188.21,0.28432314]
[1755872570318,8.06948479,188.47,188.41,27.85613483]
[1755872570521,8.06948479,188.47,188.46,27.85613483]
[1755872570894,8.06948479,188.47,188.26,10.0]
[1755872571113,8.76948479,188.47,188.19,10.0]
[1755872571315,0.98432314,188.46,188.2,0.02]
[1755872571494,0.7,188.45,188.2,0.02]
[1755872571913,0.7,188.45,188.44,27.85613483]
[1755872572303,8.06948479,188.47,188.44,27.85613483]
[1755872572507,111.42453932,189.75,188.47,0.28432314]
[1755872572508,0.7,188.63,188.47,0.28432314]
[1755872572916,0.7,188.63,188.45,0.05]
[1755872573127,28.55613483,188.63,188.44,0.28432314]
[1755872573333,28.55613483,188.62,188.44,0.28432314]
[1755872573619,0.7,188.62,188.44,0.28432314]
[1755872573798,27.85613483,188.59,188.44,0.28432314]
[1755872573996,0.7,188.58,188.53,27.85613483]
[1755872574195,0.7,188.57,188.44,0.28432314]
[1755872574395,0.06,188.47,188.44,0.28432314]
[1755872574595,0.7,188.57,188.46,28.14045797]
[1755872574824,0.7,188.57,188.47,0.28432314]
[1755872575024,0.7,188.57,188.31,10.0]
[1755872575025,0.7,188.57,188.25,10.0]
[1755872575215,27.85613483,188.49,188.16,10.0]
[1755872575423,81.06,188.48,188.45,27.85613483]
[1755872575637,81.06,188.48,188.27,0.71]
[1755872575638,0.7,188.47,188.27,0.71]
[1755872575835,0.28432314,188.46,188.2,0.71]
[1755872576127,0.7,188.45,188.11,10.0]
[1755872576427,0.7,188.45,188.23,0.71]
[1755872576636,28.14045797,188.44,188.14,0.53151908]
[1755872576937,0.7,188.43,188.41,27.85613483]
[1755872577124,80.36,188.42,188.22,0.71]
[1755872577304,27.85613483,188.38,188.15,0.71]
[1755872577504,0.98432314,188.41,188.08,0.71]
[1755872577814,0.28432314,188.38,188.08,0.71]
[1755872578020,81.06,188.37,188.1,28.56613483]
[1755872578224,0.7,188.36,188.1,28.56613483]
[1755872578538,0.7,188.36,188.11,0.71]
[1755872578743,27.85613483,188.35,188.28,27.85613483]
[1755872578905,0.7,188.36,188.1,27.85613483]
[1755872579230,28.55613483,188.36,188.1,27.85613483]
[1755872579531,0.7,188.35,188.31,27.85613483]
[1755872579730,0.7,188.34,188.11,0.71]
[1755872580248,27.85613483,188.25,188.09,0.1]
[1755872580418,38.96,188.24,188.19,27.85613483]
[1755872580619,38.26,188.24,188.09,0.1]
[1755872580866,57.9,188.23,188.1,27.85613483]
[1755872581157,0.7,188.27,188.1,27.85613483]
[1755872581324,0.7,188.27,188.09,0.1]
[1755872581817,0.7,188.27,188.2,27.85613483]
[1755872582059,0.7,188.27,188.09,0.1]
[1755872582427,0.28432314,188.25,188.09,0.1]
[1755872582631,27.85613483,188.16,188.07,0.03]
[1755872582861,118.7,188.15,187.91,4.22031337]
[1755872583162,81.12,188.14,187.96,0.03]
[1755872583464,81.12,188.14,187.91,4.22031337]
[1755872583625,27.85613483,188.1,188.03,27.85613483]
[1755872583830,0.7,188.13,187.91,4.22031337]
[1755872584030,0.7,188.12,188.1,27.85613483]
[1755872584346,41.68,188.11,187.92,0.14216157]
[1755872584546,41.68,188.11,187.91,4.22031337]
[1755872584842,0.7,188.17,188.1,27.85613483]
[1755872585042,0.7,188.17,188.15,27.85613483]
[1755872585245,28.55613483,188.16,188.01,0.03]
[1755872585433,0.7,188.16,188.01,0.03]
[1755872585640,0.7,188.16,188.04,27.85613483]
[1755872585641,0.98432314,188.16,188.04,27.85613483]
[1755872585946,28.14045797,188.08,188.01,0.03]
[1755872586148,0.7,188.08,188.01,0.03]
[1755872586338,0.7,188.13,188.07,27.85613483]
[1755872586532,0.7,188.13,188.01,0.03]
[1755872586841,38.28,188.19,188.02,0.22]
[1755872587044,0.7,188.15,188.01,0.03]
[1755872587244,0.7,188.15,188.01,0.05]
[1755872587427,0.7,188.15,188.01,0.03]
[1755872587627,0.7,188.15,188.12,27.85613483]
[1755872587835,38.28,188.19,188.14,27.85613483]
[1755872588162,0.7,188.18,188.06,0.14216157]
[1755872588345,81.16,188.18,188.06,0.14216157]
[1755872588532,80.46,188.18,188.03,0.03]
[1755872588742,27.85613483,188.09,188.03,0.03]
[1755872588933,0.14216157,188.09,187.8,0.51]
[1755872589153,0.7,188.08,188.01,27.85613483]
[1755872589353,80.48,188.08,188.07,27.85613483]
[1755872589554,81.18,188.08,187.85,0.53233963]
[1755872589753,0.7,188.07,187.89,0.51]
[1755872590037,80.48,188.13,188.06,27.85613483]
[1755872590348,27.85613483,188.1,188.03,27.85613483]
[1755872590543,81.18,188.12,188.09,27.85613483]
[1755872590844,0.7,188.11,188.02,0.14216157]
[1755872591060,81.18,188.12,188.01,0.03]
[1755872591243,80.48,188.12,188.11,27.85613483]
[1755872591561,0.7,188.26,188.07,0.07]
[1755872591856,38.32,188.33,188.07,0.07]
[1755872591857,81.2,188.25,188.07,0.07]
[1755872592057,81.2,188.25,188.15,27.85613483]
[1755872592238,0.7,188.24,188.01,0.03]
[1755872592435,27.85613483,188.2,188.01,0.03]
[1755872592641,0.7,188.26,188.19,27.85613483]
[1755872592855,13.23805227,188.3,188.25,27.85613483]
[1755872593161,13.23805227,188.3,188.1,27.85613483]
[1755872593162,0.7,188.29,188.1,0.09]
[1755872593353,0.7,188.29,188.28,27.85613483]
[1755872593652,0.7,188.29,188.1,27.85613483]
[1755872593653,0.7,188.29,188.26,27.85613483]
[1755872593859,13.23805227,188.3,188.25,0.60290191]
[1755872594232,13.23805227,188.3,188.29,27.85613483]
[1755872594432,94.43805227,188.3,188.25,0.60290191]
[1755872594644,13.23805227,188.3,188.25,0.60290191]
[1755872594845,80.48,188.33,188.29,27.85613483]
[1755872595054,0.06,188.36,188.25,0.88722505]
[1755872595055,0.06,188.36,188.32,27.85613483]
[1755872595258,0.06,188.36,188.35,27.85613483]
[1755872595459,80.48,188.42,188.28,0.7]
[1755872595664,80.48,188.42,188.41,27.85613483]
[1755872595987,38.3,188.48,188.41,27.85613483]
[1755872596269,38.3,188.63,188.48,0.28432314]
[1755872596468,81.18,188.6,188.5,28.14045797]
[1755872596634,80.48,188.6,188.59,27.85613483]
[1755872596833,38.3,188.63,188.44,0.28432314]
[1755872597068,0.2,188.66,188.45,10.53064473]
[1755872597240,0.71,188.88,188.66,0.28432314]
[1755872597562,0.71,188.88,188.87,27.85613483]
[1755872597750,77.13,188.88,188.87,27.85613483]
[1755872597950,0.71,188.88,188.68,0.28432314]
[1755872598135,2.74955176,188.89,188.77,0.28432314]
[1755872598335,38.28,188.96,188.77,0.28432314]
[1755872598537,80.44,189.03,188.95,27.85613483]
[1755872598756,38.28,189.12,189.02,27.85613483]
[1755872598952,38.28,189.12,188.87,0.28432314]
[1755872598953,0.71,189.11,188.87,0.28432314]
[1755872599246,38.28,189.12,188.9,0.28432314]
[1755872599437,0.71,189.11,188.89,0.28432314]
[1755872599964,0.71,189.11,188.77,0.52974519]
[1755872599965,0.71,189.11,188.79,10.0]
[1755872600152,0.71,189.11,188.8,0.28432314]
[1755872600466,0.06,189.07,188.86,10.0]
[1755872600639,0.06,189.07,188.91,0.28432314]
[1755872600842,0.06,189.07,189.06,27.85613483]
[1755872601267,0.71,189.2,189.07,0.28432314]
[1755872601475,0.71,189.2,188.95,0.28432314]
[1755872601651,0.71,189.2,188.77,0.52974519]
[1755872601652,0.71,189.2,188.91,0.28432314]
[1755872601841,0.71,189.2,188.91,10.28432314]
[1755872602041,0.71,189.2,188.91,0.81367574]
[1755872602042,27.85613483,189.15,188.91,0.81367574]
[1755872602242,27.85613483,189.06,188.79,10.0]
[1755872602460,27.85613483,189.03,188.76,27.85613483]
[1755872602673,0.71,189.02,188.76,27.85613483]
[1755872602967,0.71,189.02,188.8,10.0]
[1755872603163,0.71,189.02,188.77,10.0]
[1755872603365,62.04886782,190.45,188.82,10.0]
[1755872603366,10.0,189.22,188.82,10.0]
[1755872603538,0.71,189.1,189.05,27.85613483]
[1755872603745,2.74418973,189.28,188.88,26.81560276]
[1755872603746,0.71,189.17,189.09,27.85613483]
[1755872603946,26.75160004,189.39,188.99,0.28432314]
[1755872603947,0.71,189.24,188.99,0.28432314]
[1755872604157,0.71,189.29,189.23,27.85613483]
[1755872604490,0.71,189.35,189.26,27.85613483]
[1755872604697,80.28,189.36,189.26,27.85613483]
[1755872604842,80.28,189.36,189.35,27.85613483]
[1755872605046,80.99,189.36,189.17,0.28432314]
[1755872605271,0.71,189.35,189.17,0.28432314]
[1755872605463,27.85613483,189.29,189.03,10.0]
[1755872605661,0.71,189.28,189.01,0.28432314]
[1755872605965,0.71,189.28,189.02,10.0]
[1755872606169,0.71,189.28,189.25,27.85613483]
[1755872606478,0.71,189.34,189.27,27.85613483]
[1755872606775,27.85613483,189.32,189.06,0.14216157]
[1755872606941,0.71,189.31,189.25,27.85613483]
[1755872607145,0.71,189.31,188.98,10.0]
[1755872607370,27.9982964,189.17,188.9,10.0]
[1755872607582,0.71,189.16,188.86,10.0]
[1755872607746,0.71,189.16,189.11,27.85613483]
[1755872607947,80.2,189.19,189.15,27.85613483]
[1755872608147,0.71,189.18,188.97,0.14216157]
[1755872608365,0.14216157,189.13,188.86,10.0]
[1755872608569,0.71,189.12,189.03,27.85613483]
[1755872608770,0.99432314,189.18,189.11,27.85613483]
[1755872609085,0.99432314,189.18,188.2,14.76413749]
[1755872609086,28.14045797,189.14,188.8,15.891935]
[1755872609259,27.85613483,189.12,188.81,0.52963296]
[1755872609570,27.85613483,189.11,189.05,27.85613483]
[1755872609746,0.71,189.13,188.89,0.52940865]
[1755872609943,0.71,189.13,189.12,27.85613483]
[1755872610147,0.71,189.21,189.02,0.28432314]
[1755872610451,80.16,189.2,189.02,0.14216157]
[1755872610650,80.16,189.2,188.77,0.52974519]
[1755872610651,27.85613483,189.11,188.83,10.0]
[1755872610976,0.71,189.1,188.84,0.52954882]
[1755872611176,49.63909425,190.25,188.84,0.52954882]
[1755872611177,0.71,189.17,189.09,27.85613483]
[1755872611376,27.85613483,189.13,188.84,10.0]
[1755872611583,28.14045797,189.06,188.8,10.0]
[1755872611878,0.71,189.11,188.85,0.71]
[1755872612082,80.87,189.11,188.87,10.0]
[1755872612255,27.85613483,189.08,188.87,0.71]
[1755872612458,0.85216157,189.1,188.87,0.71]
[1755872612656,0.71,189.08,188.87,0.71]
[1755872612870,5.28635785,189.17,188.87,0.71]
[1755872612871,0.71,189.13,189.07,27.85613483]
[1755872613066,38.16,189.22,189.07,0.28432314]
[1755872613067,0.71,189.19,189.07,0.28432314]
[1755872613256,0.71,189.19,188.96,0.52921253]
[1755872613257,0.71,189.19,188.96,0.28432314]
[1755872613457,27.85613483,189.13,189.07,27.85613483]
[1755872613676,27.85613483,189.08,189.02,27.85613483]
[1755872613878,27.85613483,189.05,188.81,26.54557734]
[1755872614075,27.85613483,189.02,188.81,0.71]
[1755872614280,0.71,189.01,188.81,0.71]
[1755872614480,0.14216157,188.93,188.71,5.3434836]
[1755872614802,0.28432314,188.78,188.72,27.85613483]
[1755872614950,0.71,188.77,188.73,27.85613483]
[1755872615154,38.14,188.83,188.76,27.85613483]
[1755872615355,0.71,188.88,188.82,27.85613483]
[1755872615356,46.31,188.88,188.82,27.85613483]
[1755872615662,0.99432314,188.87,188.58,5.3812841]
[1755872615981,27.85613483,188.75,188.53,5.25638683]
[1755872616281,0.28432314,188.71,188.48,0.06]
[1755872616578,0.28432314,188.73,188.48,15.88287276]
[1755872616783,0.71,188.7,188.45,10.0]
[1755872616994,27.85613483,188.61,188.47,2.75001359]
[1755872617163,0.99432314,188.6,188.35,5.36241736]
[1755872617483,0.85216157,188.59,188.36,0.13]
[1755872617682,27.85613483,188.48,188.34,2.75160232]
[1755872617867,28.56613483,188.51,188.45,27.85613483]
[1755872618061,0.71,188.51,188.48,27.85613483]
[1755872618261,0.71,188.51,188.3,26.97914773]
[1755872618262,0.71,188.57,188.5,27.85613483]
[1755872618562,0.71,188.62,188.56,27.85613483]
[1755872618759,62.98,188.68,188.43,27.85613483]
[1755872618982,0.28432314,188.62,188.36,10.0]
[1755872619180,27.85613483,188.48,188.26,10.0]
[1755872619479,0.28432314,188.54,188.44,27.85613483]
[1755872619688,27.85613483,188.51,188.28,10.0]
[1755872619854,0.28432314,188.66,188.48,27.85613483]
[1755872620054,10.0,188.67,188.3,36.97914773]
[1755872620055,27.85613483,188.58,188.42,0.04]
[1755872620362,27.85613483,188.55,188.31,10.0]
[1755872620566,0.71,188.58,188.52,27.85613483]
[1755872620772,0.71,188.64,188.49,0.28432314]
[1755872620973,27.85613483,188.6,188.47,0.14216157]
[1755872621174,0.71,188.61,188.47,0.14216157]
[1755872621389,27.85613483,188.64,188.39,0.53081373]
[1755872621578,80.2,188.67,188.63,27.85613483]
[1755872621887,0.71,188.66,188.4,10.0]
[1755872622199,0.71,188.66,188.59,27.85613483]
[1755872622363,0.71,188.66,188.62,27.85613483]
[1755872622566,0.71,188.66,188.55,0.28432314]
[1755872622567,38.16,188.71,188.55,0.28432314]
[1755872622763,38.16,188.71,188.64,0.28432314]
[1755872622965,38.18,188.9,188.66,0.28432314]
[1755872623184,0.71,188.86,188.82,27.85613483]
[1755872623491,0.71,188.86,188.63,0.28432314]
[1755872623492,0.71,188.85,188.81,27.85613483]
[1755872623787,0.71,188.85,188.58,0.53027892]
[1755872623788,45.29,188.9,188.84,27.85613483]
[1755872623979,45.29,188.9,188.85,27.85613483]
[1755872624179,0.71,189.01,188.9,0.14216157]
[1755872624378,0.71,189.01,188.81,0.14216157]
[1755872624379,0.71,189.01,188.76,27.85613483]
[1755872624566,0.71,189.01,188.77,0.28432314]
[1755872624766,27.85613483,188.99,188.77,0.28432314]
[1755872624970,0.71,188.98,188.93,27.85613483]
[1755872625175,0.71,189.05,188.97,27.85613483]
[1755872625379,80.95,189.04,188.86,0.28432314]
[1755872625607,80.95,189.04,188.91,27.85613483]
[1755872625786,0.71,189.04,189.0,27.85613483]
[1755872625973,27.85613483,189.01,188.77,0.03]
[1755872626160,0.71,189.03,188.85,27.85613483]
[1755872626366,27.85613483,188.86,188.77,0.03]
[1755872626595,0.14216157,188.83,188.45,10.56064473]
[1755872626784,0.28432314,188.8,188.45,0.03]
[1755872627085,27.85613483,188.7,188.45,0.03]
[1755872627297,0.66,188.71,188.64,27.85613483]
[1755872627598,27.85613483,188.65,188.45,0.03]
[1755872627767,27.85613483,188.63,188.45,0.03]
[1755872627971,0.28432314,188.63,188.45,0.03]
[1755872628168,0.66,188.62,188.45,0.03]
[1755872628362,27.85613483,188.55,188.45,0.03]
[1755872628604,0.28432314,188.63,188.54,27.85613483]
[1755872628889,80.88,188.64,188.45,0.03]
[1755872629097,27.85613483,188.6,188.45,0.03]
[1755872629270,0.66,188.63,188.45,0.03]
[1755872629584,38.18,188.67,188.63,0.14216157]
[1755872629788,64.4511618,188.82,188.63,0.14216157]
[1755872629789,0.66,188.81,188.67,0.28432314]
[1755872629994,0.66,188.81,188.8,27.85613483]
[1755872630167,0.66,188.81,188.64,0.07]
[1755872630368,27.85613483,188.78,188.55,0.28432314]
[1755872630672,108.73613483,188.81,188.73,27.85613483]
[1755872630868,80.26,188.8,188.65,0.28432314]
[1755872631082,80.26,188.8,188.79,27.85613483]
[1755872631285,38.18,188.82,188.6,0.28432314]
[1755872631475,80.26,188.8,188.6,0.28432314]
[1755872631665,80.26,188.8,188.52,0.28432314]
[1755872631866,80.26,188.8,188.79,27.85613483]
[1755872632082,38.18,188.82,188.79,27.85613483]
[1755872632282,0.66,188.88,188.64,10.0]
[1755872632492,0.66,188.94,188.76,27.85613483]
[1755872632692,0.66,188.94,188.93,27.85613483]
[1755872633222,38.2,188.98,188.93,27.85613483]
[1755872633515,0.06,189.0,188.97,27.85613483]
[1755872633715,0.06,189.0,188.99,27.85613483]
[1755872633881,0.06,189.0,188.93,0.28432314]
[1755872634083,0.06,189.0,188.99,27.85613483]
[1755872634282,28.57613483,189.0,188.77,0.81406833]
[1755872634481,0.66,188.99,188.73,0.8141806]
[1755872634696,27.85613483,188.9,188.83,27.85613483]
[1755872634894,27.85613483,188.9,188.53,80.24]
[1755872634895,27.85613483,188.84,188.58,10.0]
[1755872635098,27.85613483,188.81,188.75,27.85613483]
[1755872635314,27.85613483,188.93,188.62,10.0]
[1755872635485,27.85613483,188.87,188.8,27.85613483]
[1755872635679,80.24,188.9,188.86,27.85613483]
[1755872635901,0.66,188.89,188.65,10.0]
[1755872636128,27.85613483,188.85,188.57,10.0]
[1755872636391,27.85613483,188.77,188.57,10.0]
[1755872636600,27.85613483,188.76,188.7,27.85613483]
[1755872636803,10.0,188.88,188.57,10.0]
[1755872636980,27.85613483,188.7,188.63,27.85613483]
[1755872637182,78.54,188.72,188.67,27.85613483]
[1755872637383,0.66,188.71,188.5,12.77848382]
[1755872637699,0.66,188.72,188.5,2.77848382]
[1755872637896,27.85613483,188.68,188.61,27.85613483]
[1755872638099,27.85613483,188.68,188.62,27.85613483]
[1755872638299,27.85613483,188.68,188.5,2.77848382]
[1755872638490,27.85613483,188.65,188.5,0.03]
[1755872638804,0.66,188.67,188.5,0.03]
[1755872638978,0.66,188.68,188.58,27.85613483]
[1755872639176,0.66,188.68,188.5,0.03]
[1755872639382,0.66,188.68,188.61,27.85613483]
[1755872639612,0.66,188.68,188.59,27.85613483]
[1755872639817,0.66,188.68,188.57,27.85613483]
[1755872640017,27.85613483,188.64,188.58,27.85613483]
[1755872640223,27.85613483,188.63,188.5,0.03]
[1755872640425,0.94432314,188.62,188.5,0.03]
[1755872640721,38.18,188.73,188.5,0.03]
[1755872640722,0.66,188.67,188.5,0.03]
[1755872641090,27.85613483,188.6,188.5,0.03]
[1755872641290,0.66,188.68,188.5,0.69]
[1755872641491,0.66,188.68,188.56,0.03]
[1755872641717,10.0,188.63,188.45,0.03]
[1755872641923,80.9,188.68,188.45,0.03]
[1755872641924,0.94432314,188.62,188.45,0.03]
[1755872642085,27.85613483,188.5,188.45,0.03]
[1755872642291,0.66,188.55,188.45,0.03]
[1755872642488,27.85613483,188.49,188.45,0.03]
[1755872642701,27.85613483,188.46,188.29,0.69]
[1755872642993,0.66,188.45,188.29,0.69]
[1755872643212,27.85613483,188.4,188.29,0.69]
[1755872643405,10.0,188.62,188.39,27.85613483]
[1755872643649,27.85613483,188.43,188.29,0.69]
[1755872643802,0.28432314,188.49,188.29,0.03]
[1755872643989,10.94432314,188.48,188.29,0.03]
[1755872644187,0.94432314,188.48,188.29,0.03]
[1755872644390,48.2,188.54,188.29,0.03]
[1755872644391,80.92,188.47,188.29,0.03]
[1755872644819,0.28432314,188.45,188.32,27.85613483]
[1755872645032,27.85613483,188.33,188.03,10.0]
[1755872645230,27.85613483,188.26,188.08,0.65]
[1755872645435,27.85613483,188.16,188.06,2.75609265]
[1755872645636,0.14216157,188.22,188.01,0.66]
[1755872645841,0.62,188.21,188.01,0.66]
[1755872646004,0.62,188.27,188.01,10.66]
[1755872646206,38.22,188.3,188.25,27.85613483]
[1755872646401,38.22,188.45,188.19,0.66]
[1755872646402,80.3,188.37,188.19,0.66]
[1755872646621,27.85613483,188.34,188.19,0.66]
[1755872646802,27.85613483,188.3,188.25,0.03]
[1755872646999,0.62,188.53,188.29,54.36583429]
[1755872647221,27.85613483,188.54,188.29,0.81541879]
[1755872647427,38.22,188.66,188.42,27.85613483]
[1755872647428,0.62,188.55,188.42,27.85613483]
[1755872647630,0.62,188.55,188.39,0.66]
[1755872647934,0.62,188.55,188.45,27.85613483]
[1755872648111,0.62,188.55,188.25,0.03]
[1755872648305,27.85613483,188.48,188.27,0.28432314]
[1755872648539,73.72,188.57,188.25,0.03]
[1755872648540,27.85613483,188.41,188.25,0.03]
[1755872648844,0.62,188.56,188.31,0.28432314]
[1755872649010,0.62,188.61,188.51,27.85613483]
[1755872649210,0.62,188.61,188.39,0.66]
[1755872649211,80.32,188.6,188.39,0.66]
[1755872649410,27.85613483,188.51,188.28,0.28432314]
[1755872649629,27.85613483,188.38,188.25,0.03]
[1755872649834,80.32,188.42,188.37,27.85613483]
[1755872650038,0.62,188.55,188.42,0.14216157]
[1755872650243,2.0,188.5,188.34,10.28432314]
[1755872650451,0.62,188.62,188.35,1.19092646]
[1755872650651,38.34,188.66,188.45,0.28432314]
[1755872650815,38.28,188.68,188.47,10.28432314]
[1755872651013,38.28,188.68,188.51,0.28432314]
[1755872651209,38.28,188.68,188.52,0.06]
[1755872651428,38.28,188.68,188.54,0.28432314]
[1755872651648,0.06,188.68,188.67,27.85613483]
[1755872651813,38.24,188.85,188.68,0.28432314]
[1755872652136,0.06,189.0,188.69,0.02]
[1755872652447,0.66,188.97,188.9,27.85613483]
[1755872652615,2.81046303,188.98,188.94,27.85613483]
[1755872652813,2.81046303,188.98,188.95,27.85613483]
[1755872652814,0.06,188.98,188.95,27.85613483]
[1755872653216,0.06,188.98,188.95,28.14045797]
[1755872653417,0.06,188.98,188.95,27.85613483]
[1755872653839,0.06,188.98,188.88,0.66]
[1755872654048,0.06,188.98,188.91,27.85613483]
[1755872654218,0.06,188.98,188.82,0.04]
[1755872654219,27.85613483,188.92,188.69,10.0]
[1755872654553,0.06,188.98,188.88,27.85613483]
[1755872654861,0.06,188.98,188.77,0.28432314]
[1755872655053,0.72,188.98,188.89,27.85613483]
[1755872655256,2.0,188.91,188.77,0.66]
[1755872655461,0.66,188.9,188.83,27.85613483]
[1755872655767,2.0,188.91,188.89,27.85613483]
[1755872656065,0.06,188.96,188.9,0.66]
[1755872656268,0.06,188.98,188.96,0.28432314]
[1755872656428,0.06,188.98,188.97,28.79045797]
[1755872656626,0.06,188.98,188.97,0.28432314]
[1755872656949,0.06,188.98,188.86,0.66]
[1755872657133,0.06,188.98,188.87,0.66]
[1755872657555,0.06,188.98,188.97,27.85613483]
[1755872657862,0.06,188.98,188.97,0.28432314]
[1755872658068,0.06,188.98,188.97,28.14045797]
[1755872658257,0.06,188.98,188.97,27.85613483]
[1755872658456,0.06,188.98,188.89,0.69]
[1755872658700,0.06,188.98,188.97,27.85613483]
[1755872658881,0.06,188.98,188.97,28.54613483]
[1755872659081,0.06,188.98,188.97,28.83045797]
[1755872659464,0.06,188.98,188.97,28.14045797]
[1755872659784,0.06,188.98,188.97,27.85613483]
[1755872660088,0.06,188.98,188.97,28.14045797]
[1755872660253,0.06,189.13,188.98,0.28432314]
[1755872660456,0.06,189.13,189.1,0.28432314]
[1755872660681,0.06,189.13,189.02,10.0]
[1755872660887,0.06,189.13,189.12,28.14045797]
[1755872661058,0.06,189.13,189.12,0.28432314]
[1755872661256,0.06,189.13,189.12,0.97432314]
[1755872661583,0.06,189.13,189.11,27.85613483]
[1755872661794,0.06,189.13,189.05,0.24]
[1755872661955,0.06,189.13,189.12,27.9982964]
[1755872662283,0.06,189.15,189.13,0.28432314]
[1755872662514,0.06,189.15,188.82,0.52960491]
[1755872662515,0.06,189.28,189.15,0.28432314]
[1755872662868,0.06,189.28,189.27,27.85613483]
[1755872663069,0.06,189.28,189.27,28.14045797]
[1755872663306,0.06,189.28,189.27,0.28432314]
[1755872663498,0.06,189.28,189.27,28.14045797]
[1755872663669,0.2,189.32,189.27,28.14045797]
[1755872663873,0.2,189.32,189.31,27.85613483]